fUST/lending_fUST_20250920
["ID","MTS","AMOUNT","RATE_DAILY","PERIOD"]
[386436638,1758298239675,-515.89,0.00021661,2]
[386436639,1758298239684,-480.0,0.00021661,2]
[386436640,1758298239694,-735.66,0.00021661,2]
[386436641,1758298239703,-480.0,0.00021661,2]
[386436642,1758298239713,-480.0,0.00021661,2]
[386436643,1758298239722,-480.0,0.00021661,2]
[386436644,1758298239732,-480.0,0.00021661,2]
[386436645,1758298239742,-490.52124139,0.00021661,2]
[386436646,1758298239751,-480.0,0.00021661,2]
[386436647,1758298239761,-480.0,0.00021661,2]
[386436648,1758298239771,-480.0,0.00021661,2]
[386436649,1758298239780,-480.0,0.00021661,2]
[386436650,1758298239790,-480.0,0.00021661,2]
[386436651,1758298239800,-480.0,0.00021661,2]
[386436652,1758298239809,-480.0,0.00021661,2]
[386436653,1758298239819,-480.0,0.00021661,2]
[386436654,1758298239828,-480.0,0.00021661,2]
[386436655,1758298239838,-480.0,0.00021661,2]
[386436656,1758298239847,-480.0,0.00021661,2]
[386436657,1758298239858,-480.0,0.00021661,2]
[386436658,1758298239867,-480.0,0.00021661,2]
[386436659,1758298239878,-480.0,0.00021661,2]
[386436660,1758298239887,-480.0,0.00021661,2]
[386436661,1758298239897,-480.0,0.00021661,2]
[386436662,1758298239906,-480.0,0.00021661,2]
[386436665,1758298239916,-480.0,0.00021661,2]
[386436668,1758298239926,-481.79524283,0.00021661,2]
[386436671,1758298239935,-480.0,0.00021661,2]
[386436674,1758298239945,-480.0,0.00021661,2]
[386436675,1758298239955,-480.0,0.00021663,2]
[386436676,1758298239966,-480.0,0.00021663,2]
[386436677,1758298239976,-480.0,0.00021663,2]
[386436678,1758298239986,-282.95090851,0.00021663,2]
[386436679,1758298239996,-480.0,0.00021663,2]
[386436680,1758298240006,-480.0,0.00021663,2]
[386436681,1758298240016,-480.0,0.00021663,2]
[386436682,1758298240026,-480.0,0.00021663,2]
[386436683,1758298240036,-505.05975724,0.00021663,2]
[386436684,1758298240046,-480.0,0.00021663,2]
[386436685,1758298240057,-376.4382581,0.00021663,2]
[386436686,1758298240067,-480.0,0.00021663,2]
[386436687,1758298240077,-480.0,0.00021663,2]
[386436688,1758298240088,-480.0,0.00021663,2]
[386436689,1758298240098,-480.0,0.00021663,2]
[386436691,1758298240107,-480.0,0.00021663,2]
[386436692,1758298240117,-480.0,0.00021663,2]
[386436693,1758298240127,-480.0,0.00021663,2]
[386436695,1758298240136,-480.0,0.00021663,2]
[386436696,1758298240146,-480.0,0.00021663,2]
[386436698,1758298240155,-480.0,0.00021663,2]
[386436700,1758298240165,-480.0,0.00021663,2]
[386436702,1758298240175,-480.0,0.00021663,2]
[386436704,1758298240185,-480.0,0.00021663,2]
[386436706,1758298240199,-480.0,0.00021663,2]
[386436708,1758298240208,-480.0,0.00021663,2]
[386436710,1758298240218,-480.0,0.00021664,2]
[386436712,1758298240228,-501.07348555,0.00021673,2]
[386436714,1758298240237,-500.0,0.00021673,2]
[386436716,1758298240246,-762.42,0.000217,2]
[386436718,1758298240256,-2766.93,0.000217,2]
[386436720,1758298240270,-480.0,0.00021701,2]
[386436722,1758298240279,-480.0,0.00021701,2]
[386436724,1758298240288,-480.0,0.00021701,2]
[386436726,1758298240298,-480.0,0.00021701,2]
[386436728,1758298240309,-480.0,0.00021701,2]
[386436730,1758298240319,-480.0,0.00021701,2]
[386436732,1758298240328,-480.0,0.00021701,2]
[386436734,1758298240338,-480.0,0.00021701,2]
[386436736,1758298240349,-480.0,0.00021701,2]
[386436738,1758298240359,-480.0,0.00021701,2]
[386436740,1758298240369,-480.0,0.00021701,2]
[386436742,1758298240378,-480.0,0.00021701,2]
[386436744,1758298240388,-480.0,0.00021701,2]
[386436746,1758298240397,-482.1116059,0.00021701,2]
[386436748,1758298240407,-480.0,0.00021701,2]
[386436750,1758298240416,-480.0,0.00021701,2]
[386436752,1758298240425,-480.0,0.00021701,2]
[386436754,1758298240435,-152.27255301,0.00021701,2]
[386436756,1758298240444,-271.0,0.00021871,2]
[386436758,1758298240454,-187.01134176,0.00021892,2]
[386436760,1758298240463,-480.0,0.00021899,2]
[386436762,1758298240473,-10799.09,0.00021899,2]
[386436764,1758298240484,-534.23,0.00021899,2]
[386436766,1758298240493,-1347.62,0.00021899,2]
[386436768,1758298240503,-480.0,0.00021899,2]
[386436770,1758298240512,-480.0,0.00021899,2]
[386436772,1758298240521,-500.0,0.00021921,2]
[386436773,1758298240532,-501.210113,0.00021921,2]
[386436775,1758298240542,-852.16351282,0.00021921,2]
[386436778,1758298240553,-500.0,0.00021921,2]
[386436779,1758298240563,-1000.0,0.00021921,2]
[386436781,1758298240572,-500.0,0.00021921,2]
[386436783,1758298240582,-501.50140071,0.00021921,2]
[386436785,1758298240591,-504.03045584,0.00021921,2]
[386436787,1758298240602,-533.26,0.00021926,2]
[386436789,1758298240611,-480.0,0.00021927,2]
[386436792,1758298240621,-646.93,0.00021927,2]
[386436794,1758298240630,-1361.13,0.00021927,2]
[386436797,1758298240640,-418.35,0.00021927,2]
[386436799,1758298240649,-480.0,0.00021927,2]
[386436801,1758298240659,-599.3,0.00021927,2]
[386436803,1758298240669,-1468.19,0.00021927,2]
[386436805,1758298240678,-506.76922095,0.00021927,2]
[386436807,1758298240688,-480.0,0.00021927,2]
[386436809,1758298240697,-480.0,0.0002193,2]
[386436810,1758298240707,-480.0,0.0002193,2]
[386436812,1758298240717,-361.8873987,0.0002193,2]
[386436814,1758298240726,-480.0,0.0002193,2]
[386436816,1758298240736,-480.0,0.0002193,2]
[386436818,1758298240745,-480.0,0.0002193,2]
[386436820,1758298240755,-480.0,0.0002193,2]
[386436822,1758298240766,-480.0,0.0002193,2]
[386436824,1758298240776,-480.0,0.0002193,2]
[386436826,1758298240785,-495.93,0.0002193,2]
[386436828,1758298240796,-546.66,0.0002193,2]
[386436830,1758298240806,-480.0,0.0002193,2]
[386436832,1758298240815,-480.0,0.0002193,2]
[386436834,1758298240824,-480.0,0.0002193,2]
[386436836,1758298240834,-480.0,0.0002193,2]
[386436837,1758298240844,-480.0,0.0002193,2]
[386436838,1758298240854,-480.0,0.0002193,2]
[386436839,1758298240863,-480.0,0.0002193,2]
[386436840,1758298240872,-480.0,0.0002193,2]
[386436841,1758298240882,-480.0,0.0002193,2]
[386436842,1758298240891,-480.0,0.0002193,2]
[386436843,1758298240901,-480.0,0.0002193,2]
[386436844,1758298240911,-480.0,0.0002193,2]
[386436846,1758298240922,-480.0,0.0002193,2]
[386436848,1758298240933,-535.06,0.0002193,2]
[386436850,1758298240942,-480.0,0.0002193,2]
[386436852,1758298240953,-480.0,0.0002193,2]
[386436854,1758298240962,-228.09620378,0.0002193,2]
[386436856,1758298240971,-480.0,0.0002193,2]
[386436858,1758298240981,-559.85,0.0002193,2]
[386436860,1758298240991,-480.0,0.0002193,2]
[386436862,1758298241000,-480.0,0.0002193,2]
[386436864,1758298241010,-480.0,0.0002193,2]
[386436866,1758298241020,-480.0,0.0002193,2]
[386436868,1758298241030,-480.0,0.0002193,2]
[386436870,1758298241039,-480.0,0.0002193,2]
[386436872,1758298241049,-480.0,0.0002193,2]
[386436874,1758298241059,-480.0,0.0002193,2]
[386436876,1758298241069,-480.0,0.0002193,2]
[386436878,1758298241079,-626.65,0.0002193,2]
[386436880,1758298241088,-480.0,0.0002193,2]
[386436882,1758298241098,-480.0,0.0002193,2]
[386436884,1758298241107,-480.0,0.0002193,2]
[386436886,1758298241118,-480.0,0.0002193,2]
[386436888,1758298241128,-480.0,0.0002193,2]
[386436890,1758298241137,-480.0,0.0002193,2]
[386436892,1758298241146,-480.0,0.0002193,2]
[386436894,1758298241156,-480.0,0.0002193,2]
[386436896,1758298241165,-480.0,0.0002193,2]
[386436898,1758298241175,-480.0,0.0002193,2]
[386436900,1758298241184,-480.0,0.0002193,2]
[386436902,1758298241194,-480.0,0.0002193,2]
[386436904,1758298241204,-480.0,0.0002193,2]
[386436906,1758298241214,-480.0,0.0002193,2]
[386436908,1758298241223,-480.0,0.0002193,2]
[386436909,1758298241231,-480.0,0.0002193,2]
[386436911,1758298241240,-480.0,0.0002193,2]
[386436913,1758298241249,-480.0,0.0002193,2]
[386436915,1758298241259,-480.0,0.0002193,2]
[386436917,1758298241274,-480.0,0.0002193,2]
[386436919,1758298241282,-480.0,0.0002193,2]
[386436921,1758298241291,-1070.64,0.0002193,2]
[386436923,1758298241300,-480.0,0.0002193,2]
[386436925,1758298241310,-502.6,0.0002193,2]
[386436927,1758298241320,-480.0,0.0002193,2]
[386436929,1758298241329,-424.37260347,0.0002193,2]
[386436931,1758298241339,-480.0,0.0002193,2]
[386436933,1758298241348,-1049.83,0.0002193,2]
[386436935,1758298241358,-480.0,0.00021931,2]
[386436937,1758298241368,-480.0,0.00021931,2]
[386436939,1758298241378,-376.13,0.00021931,2]
[386436941,1758298241387,-1374.77,0.00021931,2]
[386436943,1758298241397,-480.0,0.00021931,2]
[386436945,1758298241407,-2996.7,0.00021931,2]
[386436947,1758298241417,-480.0,0.00021931,2]
[386436949,1758298241426,-480.0,0.00021932,2]
[386436951,1758298241436,-2496.35,0.00021932,2]
[386436953,1758298241446,-422.45816075,0.00021932,2]
[386436955,1758298241455,-977.9,0.00021932,2]
[386436957,1758298241464,-480.0,0.00021932,2]
[386436959,1758298241474,-553.87,0.00021932,2]
[386436960,1758298241484,-480.0,0.00021932,2]
[386436962,1758298241493,-480.0,0.00021934,2]
[386436964,1758298241503,-480.0,0.00021935,2]
[386436966,1758298241512,-688.05,0.00021935,2]
[386436968,1758298241521,-515.89,0.00021935,2]
[386436970,1758298241531,-480.0,0.00021935,2]
[386436972,1758298241540,-735.66,0.00021935,2]
[386436974,1758298241550,-480.0,0.00021935,2]
[386436976,1758298241559,-480.0,0.00021935,2]
[386436978,1758298241569,-480.0,0.00021935,2]
[386436980,1758298241578,-480.0,0.00021935,2]
[386436983,1758298241588,-480.0,0.00021935,2]
[386436985,1758298241597,-480.0,0.00021935,2]
[386436987,1758298241607,-480.0,0.00021935,2]
[386436989,1758298241617,-480.0,0.00021935,2]
[386436990,1758298241627,-480.0,0.00021935,2]
[386436991,1758298241636,-480.0,0.00021935,2]
[386436992,1758298241646,-480.0,0.00021935,2]
[386436993,1758298241656,-480.0,0.00021935,2]
[386436994,1758298241665,-499.28407754,0.00021935,2]
[386436995,1758298241675,-480.0,0.00021935,2]
[386436996,1758298241685,-480.0,0.00021935,2]
[386436997,1758298241695,-480.0,0.00021935,2]
[386436999,1758298241704,-480.0,0.00021935,2]
[386437000,1758298241714,-480.0,0.00021935,2]
[386437001,1758298241723,-480.0,0.00021935,2]
[386437002,1758298241732,-480.0,0.00021935,2]
[386437003,1758298241741,-490.50530443,0.00021935,2]
[386437004,1758298241751,-480.0,0.00021935,2]
[386437005,1758298241761,-3196.4243764,0.00021936,2]
[386437006,1758298241770,-480.0,0.00021937,2]
[386437007,1758298241779,-480.0,0.00021937,2]
[386437008,1758298241789,-480.0,0.00021937,2]
[386437009,1758298241798,-559.74573194,0.00021937,2]
[386437010,1758298241807,-480.0,0.00021937,2]
[386437011,1758298241818,-480.0,0.00021937,2]
[386437012,1758298241827,-480.0,0.00021937,2]
[386437013,1758298241837,-480.0,0.00021937,2]
[386437014,1758298241847,-480.0,0.00021937,2]
[386437015,1758298241856,-480.0,0.00021937,2]
[386437016,1758298241866,-480.0,0.00021937,2]
[386437017,1758298241876,-480.0,0.00021937,2]
[386437018,1758298241886,-480.0,0.00021937,2]
[386437019,1758298241895,-480.0,0.00021937,2]
[386437020,1758298241905,-480.0,0.00021937,2]
[386437021,1758298241914,-480.0,0.00021937,2]
[386437022,1758298241924,-480.0,0.00021937,2]
[386437023,1758298241934,-480.0,0.00021937,2]
[386437024,1758298241943,-480.0,0.00021937,2]
[386437025,1758298241953,-480.0,0.00021938,2]
[386437026,1758298241963,-500.0,0.00021973,2]
[386437027,1758298241972,-500.0,0.00021973,2]
[386437028,1758298241981,-500.0,0.00021973,2]
[386437029,1758298241991,-500.0,0.00021973,2]
[386437030,1758298242000,-260.56227526,0.00021973,2]
[386437031,1758298242011,-500.0,0.00021973,2]
[386437032,1758298242020,-500.0,0.00021973,2]
[386437033,1758298242029,-640.15202722,0.00021973,2]
[386437034,1758298242038,-500.0,0.00021973,2]
[386437035,1758298242046,-500.0,0.00021973,2]
[386437036,1758298242055,-502.04385139,0.00021973,2]
[386437037,1758298242064,-500.0,0.00021973,2]
[386437038,1758298242073,-500.0,0.00021973,2]
[386437039,1758298242084,-500.0,0.00021973,2]
[386437040,1758298242093,-500.0,0.00021973,2]
[386437041,1758298242103,-500.0,0.00021973,2]
[386437042,1758298242112,-500.0,0.00021973,2]
[386437043,1758298242122,-500.0,0.00021973,2]
[386437044,1758298242131,-762.42,0.00021974,2]
[386437045,1758298242141,-2766.93,0.00021974,2]
[386437046,1758298242150,-480.0,0.00021975,2]
[386437047,1758298242160,-469.61158345,0.00021975,2]
[386437048,1758298242169,-480.0,0.00021975,2]
[386437049,1758298242179,-218.75796744,0.00021975,2]
[386437050,1758298242188,-480.0,0.00021975,2]
[386437051,1758298242197,-480.0,0.00021975,2]
[386437052,1758298242206,-480.0,0.00021975,2]
[386437053,1758298242214,-480.0,0.00021975,2]
[386437054,1758298242223,-480.0,0.00021975,2]
[386437056,1758298242232,-486.56315369,0.00021975,2]
[386437057,1758298242241,-37827.01306289,0.0002199,2]
[386437058,1758298242251,-4897.25,0.00022,7]
[386437059,1758298242262,-2996.07802906,0.00022,2]
[386437060,1758298242274,-2686.01136514,0.00022009,2]
[386437061,1758298242283,-151.0,0.000221,7]
[386437062,1758298242293,-150.0,0.00022133,2]
[386437063,1758298242302,-14589.44003254,0.00022139,2]
[386437064,1758298242312,-480.0,0.00022173,2]
[386437065,1758298242321,-10799.09,0.00022173,2]
[386437066,1758298242331,-534.23,0.00022173,2]
[386437067,1758298242344,-1347.62,0.00022173,2]
[386437068,1758298242354,-480.0,0.00022173,2]
[386437069,1758298242363,-480.0,0.00022173,2]
[386437070,1758298242373,-533.26,0.000222,2]
[386437071,1758298242383,-480.0,0.00022201,2]
[386437072,1758298242392,-646.93,0.00022201,2]
[386437073,1758298242401,-1361.13,0.00022201,2]
[386437074,1758298242411,-480.0,0.00022201,2]
[386437075,1758298242420,-599.3,0.00022201,2]
[386437076,1758298242430,-1468.19,0.00022201,2]
[386437077,1758298242439,-480.0,0.00022201,2]
[386437078,1758298242448,-480.0,0.00022204,2]
[386437079,1758298242458,-480.0,0.00022204,2]
[386437080,1758298242467,-480.0,0.00022204,2]
[386437081,1758298242476,-424.94364405,0.00022204,2]
[386437082,1758298242485,-490.4544552,0.00022204,2]
[386437083,1758298242495,-495.93,0.00022204,2]
[386437084,1758298242505,-546.66,0.00022204,2]
[386437085,1758298242515,-480.0,0.00022204,2]
[386437086,1758298242525,-480.0,0.00022204,2]
[386437087,1758298242534,-480.0,0.00022204,2]
[386437088,1758298242544,-480.0,0.00022204,2]
[386437089,1758298242553,-480.0,0.00022204,2]
[386437090,1758298242562,-480.0,0.00022204,2]
[386437091,1758298242572,-480.0,0.00022204,2]
[386437092,1758298242582,-480.0,0.00022204,2]
[386437093,1758298242591,-480.0,0.00022204,2]
[386437094,1758298242601,-480.0,0.00022204,2]
[386437095,1758298242611,-535.06,0.00022204,2]
[386437096,1758298242622,-480.0,0.00022204,2]
[386437097,1758298242632,-480.0,0.00022204,2]
[386437098,1758298242641,-480.0,0.00022204,2]
[386437099,1758298242652,-480.0,0.00022204,2]
[386437100,1758298242662,-480.0,0.00022204,2]
[386437101,1758298242672,-480.0,0.00022204,2]
[386437102,1758298242682,-298.22048776,0.00022204,2]
[386437103,1758298242691,-286.44,0.00022204,2]
[386437104,1758298242701,-480.0,0.00022204,2]
[386437105,1758298242711,-480.0,0.00022204,2]
[386437106,1758298242720,-480.0,0.00022204,2]
[386437107,1758298242730,-480.0,0.00022204,2]
[386437108,1758298242740,-480.0,0.00022204,2]
[386437109,1758298242750,-480.0,0.00022204,2]
[386437110,1758298242759,-580.0,0.00022204,2]
[386437111,1758298242769,-480.0,0.00022204,2]
[386437112,1758298242779,-480.0,0.00022204,2]
[386437113,1758298242788,-480.0,0.00022204,2]
[386437114,1758298242798,-480.0,0.00022204,2]
[386437115,1758298242807,-480.0,0.00022204,2]
[386437116,1758298242817,-480.0,0.00022204,2]
[386437117,1758298242827,-480.0,0.00022204,2]
[386437118,1758298242836,-480.0,0.00022204,2]
[386437119,1758298242846,-480.0,0.00022204,2]
[386437120,1758298242855,-480.0,0.00022204,2]
[386437121,1758298242865,-1070.64,0.00022204,2]
[386437122,1758298242874,-502.6,0.00022204,2]
[386437123,1758298242884,-480.0,0.00022204,2]
[386437124,1758298242893,-518.00520743,0.00022204,2]
[386437125,1758298242903,-1049.83,0.00022204,2]
[386437126,1758298243037,-480.0,0.00022205,2]
[386437127,1758298243048,-1374.77,0.00022205,2]
[386437128,1758298243058,-480.0,0.00022205,2]
[386437129,1758298243068,-2996.7,0.00022205,2]
[386437131,1758298243077,-480.0,0.00022205,2]
[386437132,1758298243087,-480.0,0.00022206,2]
[386437134,1758298243096,-2496.35,0.00022206,2]
[386437136,1758298243106,-977.9,0.00022206,2]
[386437139,1758298243116,-480.0,0.00022206,2]
[386437143,1758298243125,-553.87,0.00022206,2]
[386437145,1758298243135,-480.0,0.00022206,2]
[386437147,1758298243145,-688.05,0.00022209,2]
[386437148,1758298243154,-515.89,0.00022209,2]
[386437149,1758298243164,-480.0,0.00022209,2]
[386437150,1758298243173,-735.66,0.00022209,2]
[386437151,1758298243183,-480.0,0.00022209,2]
[386437152,1758298243192,-480.0,0.00022209,2]
[386437153,1758298243203,-480.0,0.00022209,2]
[386437154,1758298243213,-480.0,0.00022209,2]
[386437155,1758298243223,-480.0,0.00022209,2]
[386437156,1758298243233,-480.0,0.00022209,2]
[386437157,1758298243243,-480.0,0.00022209,2]
[386437158,1758298243253,-480.0,0.00022209,2]
[386437159,1758298243266,-480.0,0.00022209,2]
[386437160,1758298243276,-480.0,0.00022209,2]
[386437161,1758298243286,-480.0,0.00022209,2]
[386437162,1758298243296,-480.0,0.00022209,2]
[386437163,1758298243307,-480.0,0.00022209,2]
[386437164,1758298243316,-480.0,0.00022211,2]
[386437165,1758298243326,-480.0,0.00022211,2]
[386437166,1758298243336,-627.41650285,0.00022211,2]
[386437167,1758298243347,-480.0,0.00022211,2]
[386437168,1758298243357,-480.0,0.00022211,2]
[386437169,1758298243367,-480.0,0.00022211,2]
[386437170,1758298243376,-480.0,0.00022211,2]
[386437171,1758298243386,-480.0,0.00022211,2]
[386437172,1758298243395,-480.0,0.00022211,2]
[386437173,1758298243405,-480.0,0.00022211,2]
[386437174,1758298243415,-480.0,0.00022211,2]
[386437175,1758298243425,-480.0,0.00022211,2]
[386437176,1758298243435,-480.0,0.00022211,2]
[386437177,1758298243444,-480.0,0.00022211,2]
[386437178,1758298243453,-480.0,0.00022211,2]
[386437179,1758298243462,-480.0,0.00022211,2]
[386437180,1758298243471,-557.1,0.00022212,2]
[386437181,1758298243481,-1000.0,0.00022221,2]
[386437182,1758298243490,-762.42,0.00022248,2]
[386437183,1758298243499,-2766.93,0.00022248,2]
[386437184,1758298243509,-480.0,0.00022249,2]
[386437185,1758298243518,-480.0,0.00022249,2]
[386437186,1758298243528,-480.0,0.00022249,2]
[386437187,1758298243538,-480.0,0.00022249,2]
[386437188,1758298243547,-480.0,0.00022249,2]
[386437189,1758298243557,-480.0,0.00022447,2]
[386437190,1758298243566,-10799.09,0.00022447,2]
[386437191,1758298243575,-534.23,0.00022447,2]
[386437192,1758298243585,-1347.62,0.00022447,2]
[386437193,1758298243594,-480.0,0.00022447,2]
[386437194,1758298243604,-1500.0,0.00022468,2]
[386437195,1758298243613,-533.26,0.00022474,2]
[386437196,1758298243622,-573.36,0.00022475,3]
[386437197,1758298243632,-480.0,0.00022475,2]
[386437198,1758298243642,-646.93,0.00022475,2]
[386437199,1758298243651,-1361.13,0.00022475,2]
[386437201,1758298243661,-480.0,0.00022475,2]
[386437204,1758298243671,-599.3,0.00022475,2]
[386437206,1758298243680,-1468.19,0.00022475,2]
[386437208,1758298243691,-496.17165839,0.00022475,2]
[386437210,1758298243702,-480.0,0.00022478,2]
[386437212,1758298243711,-230.92,0.00022478,2]
[386437214,1758298243721,-480.0,0.00022478,2]
[386437215,1758298243730,-495.93,0.00022478,2]
[386437217,1758298243740,-546.66,0.00022478,2]
[386437220,1758298243750,-480.0,0.00022478,2]
[386437222,1758298243759,-480.0,0.00022478,2]
[386437223,1758298243768,-480.0,0.00022478,2]
[386437225,1758298243777,-480.0,0.00022478,2]
[386437228,1758298243787,-176.54296969,0.00022478,2]
[386437230,1758298243796,-480.0,0.00022478,2]
[386437232,1758298243805,-480.0,0.00022478,2]
[386437234,1758298243814,-535.06,0.00022478,2]
[386437235,1758298243824,-500.12538098,0.00022478,2]
[386437237,1758298243833,-480.0,0.00022478,2]
[386437239,1758298243842,-480.0,0.00022478,2]
[386437241,1758298243851,-480.0,0.00022478,2]
[386437243,1758298243861,-480.0,0.00022478,2]
[386437245,1758298243870,-480.0,0.00022478,2]
[386437247,1758298243879,-480.0,0.00022478,2]
[386437249,1758298243888,-480.0,0.00022478,2]
[386437251,1758298243898,-480.0,0.00022478,2]
[386437253,1758298243907,-480.0,0.00022478,2]
[386437255,1758298243916,-480.0,0.00022478,2]
[386437257,1758298243926,-480.0,0.00022478,2]
[386437259,1758298243936,-480.0,0.00022478,2]
[386437261,1758298243945,-480.0,0.00022478,2]
[386437263,1758298243954,-480.0,0.00022478,2]
[386437265,1758298243963,-480.0,0.00022478,2]
[386437267,1758298243972,-467.86253488,0.00022478,2]
[386437269,1758298243981,-480.0,0.00022478,2]
[386437271,1758298243991,-1070.64,0.00022478,2]
[386437274,1758298244000,-502.6,0.00022478,2]
[386437276,1758298244010,-480.0,0.00022478,2]
[386437278,1758298244019,-1049.83,0.00022478,2]
[386437280,1758298244028,-480.0,0.00022479,2]
[386437282,1758298244038,-1374.77,0.00022479,2]
[386437284,1758298244047,-480.0,0.00022479,2]
[386437286,1758298244056,-2996.7,0.00022479,2]
[386437288,1758298244065,-480.0,0.00022479,2]
[386437290,1758298244075,-480.0,0.0002248,2]
[386437292,1758298244084,-2496.35,0.0002248,2]
[386437294,1758298244093,-977.9,0.0002248,2]
[386437296,1758298244103,-480.0,0.0002248,2]
[386437298,1758298244112,-553.87,0.0002248,2]
[386437300,1758298244121,-480.0,0.0002248,2]
[386437302,1758298244130,-688.05,0.00022483,2]
[386437304,1758298244139,-515.89,0.00022483,2]
[386437306,1758298244148,-480.0,0.00022483,2]
[386437307,1758298244157,-735.66,0.00022483,2]
[386437310,1758298244166,-480.0,0.00022483,2]
[386437311,1758298244175,-480.0,0.00022483,2]
[386437314,1758298244185,-480.0,0.00022483,2]
[386437315,1758298244193,-480.0,0.00022483,2]
[386437317,1758298244202,-480.0,0.00022483,2]
[386437319,1758298244212,-480.0,0.00022483,2]
[386437321,1758298244221,-480.0,0.00022483,2]
[386437323,1758298244230,-480.0,0.00022483,2]
[386437325,1758298244240,-480.0,0.00022483,2]
[386437327,1758298244248,-480.0,0.00022485,2]
[386437329,1758298244258,-480.0,0.00022485,2]
[386437331,1758298244272,-480.0,0.00022485,2]
[386437333,1758298244281,-480.0,0.00022485,2]
[386437335,1758298244290,-480.0,0.00022485,2]
[386437337,1758298244299,-480.0,0.00022485,2]
[386437339,1758298244310,-480.0,0.00022485,2]
[386437341,1758298244319,-480.0,0.00022485,2]
[386437343,1758298244328,-480.0,0.00022485,2]
[386437345,1758298244339,-480.0,0.00022485,2]
[386437347,1758298244348,-480.0,0.00022485,2]
[386437349,1758298244357,-500.0,0.00022521,2]
[386437351,1758298244367,-502.82538739,0.00022521,2]
[386437353,1758298244376,-504.33457374,0.00022521,2]
[386437355,1758298244385,-1000.0,0.00022521,2]
[386437357,1758298244400,-1000.0,0.00022521,2]
[386437359,1758298244413,-500.0,0.00022521,2]
[386437361,1758298244423,-1000.0,0.00022521,2]
[386437363,1758298244433,-1000.0,0.00022521,2]
[386437365,1758298244442,-503.17106557,0.00022521,2]
[386437367,1758298244451,-543.03333736,0.00022521,2]
[386437369,1758298244460,-1000.0,0.00022521,2]
[386437371,1758298244470,-507.20091411,0.00022521,2]
[386437373,1758298244480,-1000.0,0.00022521,2]
[386437375,1758298244490,-501.37998563,0.00022521,2]
[386437377,1758298244499,-762.42,0.00022522,2]
[386437378,1758298244509,-2766.93,0.00022522,2]
[386437380,1758298244518,-480.0,0.00022523,2]
[386437382,1758298244528,-480.0,0.00022523,2]
[386437385,1758298244538,-177.56353103,0.00022553,2]
[386437387,1758298244548,-480.0,0.00022721,2]
[386437389,1758298244558,-10799.09,0.00022721,2]
[386437391,1758298244568,-534.23,0.00022721,2]
[386437393,1758298244577,-1347.62,0.00022721,2]
[386437395,1758298244588,-480.0,0.00022721,2]
[386437397,1758298244598,-700.0,0.00022731,2]
[386437399,1758298244607,-533.26,0.00022748,2]
[386437401,1758298244623,-480.0,0.00022749,2]
[386437403,1758298244633,-646.93,0.00022749,2]